bitfinex/quotes_BTCUSD_20230120
["timestamp","ask_amount","ask_price","bid_price","bid_amount"]
[1674194845801,0.24863571,20979.0,20978.0,3.86720971]
[1674194846246,0.24863571,20979.0,20978.0,4.09570636]
[1674194846511,0.24863571,20979.0,20978.0,4.36770971]
[1674194846777,0.24863571,20979.0,20978.0,4.19593918]
[1674194847286,0.22090881,20979.0,20978.0,6.41978646]
[1674194847542,0.22090881,20979.0,20978.0,6.42828646]
[1674194847800,0.22090881,20979.0,20978.0,6.38028646]
[1674194848345,0.22090881,20979.0,20978.0,5.49133544]
[1674194848816,0.22090881,20979.0,20978.0,4.83873918]
[1674194848843,0.22090881,20979.0,20978.0,4.53482503]
[1674194849331,0.00465936,20980.0,20978.0,4.35044683]
[1674194849589,0.00465936,20980.0,20979.0,1.99658518]
[1674194849849,0.00465936,20980.0,20979.0,2.77868732]
[1674194850394,0.00465936,20980.0,20979.0,4.01819282]
[1674194850653,0.00465936,20980.0,20979.0,4.08987102]
[1674194850915,0.00465936,20980.0,20979.0,4.29600873]
[1674194851513,0.00465936,20980.0,20979.0,4.41019282]
[1674194852051,0.00465936,20980.0,20979.0,4.21288304]
[1674194852315,0.00465936,20980.0,20979.0,4.21622181]
[1674194852791,0.00465936,20980.0,20979.0,4.05530956]
[1674194852837,0.00465936,20980.0,20979.0,3.24658989]
[1674194853071,0.00465936,20980.0,20979.0,2.17554471]
[1674194853845,0.00465936,20980.0,20979.0,2.17254471]
[1674194854658,0.00465936,20980.0,20979.0,2.28667505]
[1674194855108,0.00465936,20980.0,20979.0,2.17254471]
[1674194856708,0.00465936,20980.0,20979.0,1.84153269]
[1674194856954,0.00465936,20980.0,20979.0,2.77128336]
[1674194857206,0.00465936,20980.0,20979.0,3.69593312]
[1674194857736,0.00465936,20980.0,20979.0,3.58180278]
[1674194858529,0.22465936,20980.0,20979.0,3.58180278]
[1674194858777,0.22465936,20980.0,20979.0,3.81012458]
[1674194859027,0.22465936,20980.0,20979.0,3.92372458]
[1674194859476,0.22465936,20980.0,20979.0,3.69540278]
[1674194859732,0.22465936,20980.0,20979.0,3.92372458]
[1674194860508,0.22465936,20980.0,20979.0,4.42422458]
[1674194860766,0.22465936,20980.0,20979.0,4.43272458]
[1674194861031,0.22465936,20980.0,20979.0,4.3184919]
[1674194861315,0.22465936,20980.0,20979.0,4.20788884]
[1674194861600,0.22465936,20980.0,20979.0,4.6921532]
[1674194862601,0.22465936,20980.0,20979.0,4.31820146]
[1674194862872,0.22465936,20980.0,20979.0,4.20411234]
[1674194863140,0.22465936,20980.0,20979.0,4.43243414]
[1674194863663,0.22465936,20980.0,20979.0,4.20411234]
[1674194863889,0.22465936,20980.0,20979.0,4.31820008]
[1674194864212,0.22465936,20980.0,20979.0,4.68631473]
[1674194864423,0.22465936,20980.0,20979.0,3.80862726]
[1674194864675,0.22465936,20980.0,20979.0,2.20718783]
[1674194865706,0.22465936,20980.0,20979.0,2.20711238]
[1674194874224,0.22465936,20980.0,20979.0,3.22622305]
[1674194874765,0.22465936,20980.0,20979.0,3.70280133]
[1674194875032,0.22465936,20980.0,20979.0,3.03641497]
[1674194875510,0.22465936,20980.0,20979.0,3.42308828]
[1674194876075,0.22465936,20980.0,20979.0,2.92224304]
[1674194876332,0.22465936,20980.0,20979.0,3.86047782]
[1674194876580,0.22465936,20980.0,20979.0,4.37306367]
[1674194876851,0.22465936,20980.0,20979.0,4.78490162]
[1674194877158,0.22465936,20980.0,20979.0,4.37306367]
[1674194877421,0.22465936,20980.0,20979.0,4.54582782]
[1674194877669,0.22465936,20980.0,20979.0,4.71710118]
[1674194877882,0.22465936,20980.0,20979.0,4.20300298]
[1674194878132,0.22465936,20980.0,20979.0,4.37427615]
[1674194878424,0.22465936,20980.0,20979.0,4.08766782]
[1674194878969,0.22465936,20980.0,20979.0,4.25894478]
[1674194879271,0.22465936,20980.0,20979.0,4.08766782]
[1674194879525,0.22465936,20980.0,20979.0,4.25894482]
[1674194879988,0.22465936,20980.0,20979.0,4.59666782]
[1674194880008,0.22465936,20980.0,20979.0,4.58205367]
[1674194880251,0.22465936,20980.0,20979.0,4.59618039]
[1674194880503,0.22465936,20980.0,20979.0,4.58156624]
[1674194880752,0.22465936,20980.0,20979.0,4.88156624]
[1674194881744,0.22465936,20980.0,20979.0,4.65324444]
[1674194882776,0.22465936,20980.0,20979.0,4.36785859]
[1674194883006,0.22465936,20980.0,20979.0,4.65337097]
[1674194886147,0.22465936,20980.0,20979.0,4.36785859]
[1674194886412,0.22465936,20980.0,20979.0,4.48095859]
[1674194886675,0.20219343,20980.0,20979.0,4.48095859]
[1674194886952,0.20219343,20980.0,20979.0,6.01583539]
[1674194887217,0.20219343,20980.0,20979.0,5.67397822]
[1674194887793,0.20219343,20980.0,20979.0,6.01643833]
[1674194888326,0.20219343,20980.0,20979.0,6.69663833]
[1674194888585,0.20219343,20980.0,20979.0,6.69666057]
[1674194888586,0.12366871,20980.0,20979.0,6.69666057]
[1674194889374,0.12366871,20980.0,20979.0,5.71660602]
[1674194889622,0.00465936,20982.0,20979.0,5.71660602]
[1674194889877,0.00465936,20982.0,20981.0,1.83143965]
[1674194890138,0.00465936,20982.0,20981.0,5.61556462]
[1674194890415,0.00465936,20982.0,20981.0,5.62406462]
[1674194890660,0.00465936,20982.0,20981.0,5.3387102]
[1674194891180,0.00465936,20982.0,20981.0,4.75462876]
[1674194891504,0.00465936,20982.0,20981.0,4.97297066]
[1674194891934,0.00465936,20982.0,20981.0,5.3965171]
[1674194892191,0.00465936,20982.0,20981.0,5.26123356]
[1674194892446,0.00465936,20982.0,20981.0,5.4895171]
[1674194892712,0.00465936,20982.0,20981.0,5.61494433]
[1674194892969,0.00465936,20982.0,20981.0,5.50134433]
[1674194893446,0.00465936,20982.0,20981.0,5.61547377]
[1674194893712,0.00465936,20982.0,20981.0,4.961763]
[1674194893968,0.00465936,20982.0,20981.0,5.25815042]
[1674194894233,0.00465936,20982.0,20981.0,5.20785873]
[1674194894484,0.00465936,20982.0,20981.0,4.96175709]
[1674194894751,0.00465936,20982.0,20981.0,4.85156517]
[1674194895005,0.00465936,20982.0,20981.0,5.06682864]
[1674194895323,0.00465936,20982.0,20981.0,5.36682864]
[1674194895811,0.00415936,20982.0,20981.0,5.36682864]
[1674194897568,0.00415936,20982.0,20981.0,5.37685135]
[1674194898791,0.00415936,20982.0,20981.0,5.20564445]
[1674194899057,0.00415936,20982.0,20981.0,5.49099887]
[1674194900076,0.12415936,20982.0,20981.0,5.63776333]
[1674194900346,0.12415936,20982.0,20981.0,5.80890279]
[1674194900633,0.12415936,20982.0,20981.0,5.14850037]
[1674194900882,0.12415936,20982.0,20981.0,5.37678391]
[1674194901098,0.12415936,20982.0,20981.0,5.14850037]
[1674194901355,0.12415936,20982.0,20981.0,5.49775777]
[1674194901602,0.12415936,20982.0,20981.0,5.26258851]
[1674194901825,0.12415936,20982.0,20981.0,5.52033132]
[1674194902340,0.12415936,20982.0,20981.0,5.33442016]
[1674194902594,0.12415936,20982.0,20981.0,4.96258921]
[1674194902849,0.12415936,20982.0,20981.0,4.84948921]
[1674194903863,0.12415936,20982.0,20981.0,5.2805999]
[1674194904121,0.12415936,20982.0,20981.0,5.41779644]
[1674194904388,0.12415936,20982.0,20981.0,5.51942196]
[1674194904652,0.12415936,20982.0,20981.0,5.0759081]
[1674194904914,0.12415936,20982.0,20981.0,3.74443309]
[1674194906183,0.12415936,20982.0,20981.0,3.41831909]
[1674194906955,0.12415936,20982.0,20981.0,3.74326409]
[1674194907483,0.12415936,20982.0,20981.0,2.76614309]
[1674194907741,0.12415936,20982.0,20981.0,2.44119809]
[1674194908801,0.12415936,20982.0,20981.0,2.55528693]
[1674194909090,0.12415936,20982.0,20981.0,2.87131293]
[1674194909346,0.12415936,20982.0,20981.0,2.75722409]
[1674194909609,0.12415936,20982.0,20981.0,2.87131293]
[1674194909880,0.12415936,20982.0,20981.0,3.69651392]
[1674194912189,0.12415936,20982.0,20981.0,2.87131293]
[1674194912442,0.12415936,20982.0,20981.0,3.6925634]
[1674194912700,0.12415936,20982.0,20981.0,2.75722409]
[1674194912953,0.12415936,20982.0,20981.0,2.44119809]
[1674194916323,0.12407738,20982.0,20981.0,2.44119809]
[1674194917509,0.12407738,20982.0,20981.0,3.37618637]
[1674194917771,0.12407738,20982.0,20981.0,3.67012037]
[1674194918030,0.12407738,20982.0,20981.0,2.73513209]
[1674194918539,0.12407738,20982.0,20981.0,3.55601042]
[1674194918806,0.12407738,20982.0,20981.0,3.67009926]
[1674194921640,0.12407738,20982.0,20981.0,3.23898857]
[1674194921888,0.12407738,20982.0,20981.0,3.51182208]
[1674194922109,0.12407738,20982.0,20981.0,3.78796247]
[1674194922355,0.12407738,20982.0,20981.0,4.12985081]
[1674194922608,0.12407738,20982.0,20981.0,3.90217398]
[1674194922855,0.12407738,20982.0,20981.0,3.90217441]
[1674194923319,0.12407738,20982.0,20981.0,3.39761054]
[1674194923811,0.12407738,20982.0,20981.0,4.00913544]
[1674194924068,0.12407738,20982.0,20981.0,4.65102378]
[1674194924558,0.12407738,20982.0,20981.0,4.54743544]
[1674194924788,0.12407738,20982.0,20981.0,4.24743544]
[1674194925037,0.12407738,20982.0,20981.0,4.50608242]
[1674194925283,0.12407738,20982.0,20981.0,4.53180964]
[1674194925509,0.12407738,20982.0,20981.0,4.23180964]
[1674194928551,0.12407738,20982.0,20981.0,4.09201384]
[1674194928788,0.12407738,20982.0,20981.0,4.39201384]
[1674194930342,0.12407738,20982.0,20981.0,4.62044908]
[1674194930614,0.12407738,20982.0,20981.0,5.12750384]
[1674194931129,0.11166965,20982.0,20981.0,4.84214942]
[1674194931420,0.11166965,20982.0,20981.0,5.39022986]
[1674194934020,0.11166965,20982.0,20981.0,4.84214942]
[1674194934040,0.11166965,20982.0,20981.0,4.72924942]
[1674194934311,0.11166965,20982.0,20981.0,4.13446363]
[1674194934573,0.11166965,20982.0,20981.0,4.07738782]
[1674194934835,0.11166965,20982.0,20981.0,4.70466871]
[1674194935107,0.11166965,20982.0,20981.0,4.70466887]
[1674194935366,0.11166965,20982.0,20981.0,4.47635197]
[1674194935628,0.11166965,20982.0,20981.0,4.77635197]
[1674194935893,0.11166965,20982.0,20981.0,5.00466087]
[1674194936445,0.11166965,20982.0,20981.0,4.77635197]
[1674194938641,0.11166965,20982.0,20981.0,4.49095942]
[1674194939185,0.11166965,20982.0,20981.0,5.14860447]
[1674194939461,0.11166965,20982.0,20981.0,6.14157725]
[1674194939728,0.11166965,20982.0,20981.0,5.14860447]
[1674194940542,0.11166965,20982.0,20981.0,5.38685447]
[1674194942700,0.07487436,20982.0,20981.0,5.04437212]
[1674194942963,0.07487436,20982.0,20981.0,5.49936583]
[1674194943267,0.00789315,20984.0,20981.0,5.38616583]
[1674194943555,0.00789315,20984.0,20983.0,0.89915021]
[1674194943812,0.00789315,20984.0,20983.0,5.49144455]
[1674194944069,0.00789315,20984.0,20983.0,5.49994455]
[1674194946401,0.00789315,20984.0,20983.0,5.27175678]
[1674194946659,0.00789315,20984.0,20983.0,5.49985505]
[1674194946905,0.00789315,20984.0,20983.0,5.27775678]
[1674194947671,0.00789315,20984.0,20983.0,5.51600678]
[1674194948438,0.00789315,20984.0,20983.0,5.23075657]
[1674194948670,0.00789315,20984.0,20983.0,5.51588143]
[1674194949198,0.00789315,20984.0,20983.0,5.23075657]
[1674194949445,0.00789315,20984.0,20983.0,5.31775657]
[1674194949900,0.00789315,20984.0,20983.0,5.22475657]
[1674194949955,0.00789315,20984.0,20983.0,5.31675657]
[1674194950210,0.00789315,20984.0,20983.0,5.82981942]
[1674194950973,0.00789315,20984.0,20983.0,6.10061799]
[1674194951464,0.00789315,20984.0,20983.0,5.48776702]
[1674194951706,0.08789315,20984.0,20983.0,5.71577417]
[1674194952396,0.08789315,20984.0,20983.0,6.06257827]
[1674194952640,0.08789315,20984.0,20983.0,5.71577417]
[1674194954195,0.08789315,20984.0,20983.0,5.9456312]
[1674194954717,0.08789315,20984.0,20983.0,5.48776702]
[1674194955460,0.08789315,20984.0,20983.0,5.71577417]
[1674194955718,0.08789315,20984.0,20983.0,5.54476372]
[1674194955985,0.08789315,20984.0,20983.0,5.71580518]
[1674194957478,0.08789315,20984.0,20983.0,5.8859332]
[1674194957739,0.08789315,20984.0,20983.0,5.90969809]
[1674194958271,0.08789315,20984.0,20983.0,5.48779803]
[1674194958576,0.08789315,20984.0,20983.0,3.76600444]
[1674194958876,0.08789315,20984.0,20983.0,3.6519467]
[1674194959394,0.08789315,20984.0,20983.0,3.6434467]
[1674194959672,0.08789315,20984.0,20983.0,3.3258457]
[1674194960490,0.08789315,20984.0,20983.0,3.6613137]
[1674194961044,0.08789315,20984.0,20983.0,3.0688137]
[1674194962646,0.08889315,20984.0,20983.0,3.1538137]
[1674194963075,0.08889315,20984.0,20983.0,2.8183457]
[1674194963606,0.08882082,20984.0,20983.0,2.8183457]
[1674194966048,0.08882082,20984.0,20983.0,2.3417697]
[1674194969993,0.08882082,20984.0,20983.0,3.29268337]
[1674194970278,0.08882082,20984.0,20983.0,4.1397166]
[1674194970793,0.08882082,20984.0,20983.0,4.25366601]
[1674194971581,0.08882082,20984.0,20983.0,4.02565886]
[1674194971834,0.08882082,20984.0,20983.0,5.0670934]
[1674194972925,0.08782082,20984.0,20983.0,4.9820934]
[1674194973207,0.08782082,20984.0,20983.0,5.0740934]
[1674194974826,0.08782082,20984.0,20983.0,4.7335432]
[1674194975082,0.08782082,20984.0,20983.0,5.24691919]
[1674194975343,0.08782082,20984.0,20983.0,5.13331919]
[1674194975779,0.08782082,20984.0,20983.0,5.47370775]
[1674194977592,0.08782082,20984.0,20983.0,5.47370925]
[1674194978598,0.08782082,20984.0,20983.0,5.24553675]
[1674194978870,0.08782082,20984.0,20983.0,4.96033176]
[1674194980233,0.08782082,20984.0,20983.0,5.57571312]
[1674194981110,0.08782082,20984.0,20983.0,5.81395312]
[1674194981113,0.08782082,20984.0,20983.0,5.47165941]
[1674194981371,0.08782082,20984.0,20983.0,5.81395312]
[1674194981625,0.08782082,20984.0,20983.0,5.81392941]
[1674194982695,0.08782082,20984.0,20983.0,5.92752941]
[1674194983219,0.08782082,20984.0,20983.0,5.68928941]
[1674194983477,0.08782082,20984.0,20983.0,5.92752941]
[1674194984262,0.08775278,20984.0,20983.0,5.92752941]
[1674194984819,0.08775278,20984.0,20983.0,5.42577176]
[1674194987115,0.08775278,20984.0,20983.0,5.29725674]
[1674194987373,0.08775278,20984.0,20983.0,5.29724516]
[1674194987637,0.08775278,20984.0,20983.0,5.53580428]
[1674194987903,0.08775278,20984.0,20983.0,5.53580548]
[1674194988436,0.08775278,20984.0,20983.0,5.83580548]
[1674194988944,0.08775278,20984.0,20983.0,5.60772344]
[1674194989208,0.08775278,20984.0,20983.0,5.32265004]
[1674194992649,0.08775278,20984.0,20983.0,5.93710683]
[1674194992879,0.07056546,20984.0,20983.0,5.93710683]
[1674194993401,0.07056546,20984.0,20983.0,6.93194174]
[1674194993959,0.07056546,20984.0,20983.0,6.93152591]
[1674194994177,0.07056546,20984.0,20983.0,6.58964803]
[1674194996581,0.07056546,20984.0,20983.0,6.74503473]
[1674194998604,0.00600314,20987.0,20983.0,6.74503473]
[1674194998857,0.00600314,20987.0,20986.0,1.05490169]
[1674194999138,0.00600314,20987.0,20986.0,4.52297674]
[1674194999395,0.00600314,20987.0,20986.0,4.83147674]
[1674194999952,0.00600314,20987.0,20986.0,5.40041485]
[1674195000209,0.00600314,20987.0,20986.0,4.90967674]
[1674195002856,0.0049602,20987.0,20986.0,4.90967674]
[1674195004149,0.0049602,20987.0,20986.0,5.1943647]
[1674195004669,0.0049602,20987.0,20986.0,5.42216804]
[1674195004925,0.0049602,20987.0,20986.0,5.1943647]
[1674195005443,0.0049602,20987.0,20986.0,4.90967674]
[1674195008227,0.0049602,20987.0,20986.0,5.39360928]
[1674195008481,0.0049602,20987.0,20986.0,5.3926839]
[1674195008745,0.0049602,20987.0,20986.0,5.4846839]
[1674195009509,0.0049602,20987.0,20986.0,5.38121592]
[1674195009771,0.0049602,20987.0,20986.0,6.3789193]
[1674195011592,0.00711113,20988.0,20987.0,0.6005]
[1674195011848,0.00711113,20988.0,20987.0,4.54131346]
[1674195012331,0.00711113,20988.0,20987.0,5.53901684]
[1674195012581,0.00711113,20988.0,20987.0,5.08701346]
[1674195012856,0.0060365,20988.0,20987.0,5.10231346]
[1674195013393,5e-07,20988.0,20987.0,5.10231346]
[1674195013635,0.00600228,20990.0,20989.0,0.5005]
[1674195013900,0.00600228,20990.0,20989.0,3.999628]
[1674195014151,0.00600228,20990.0,20989.0,4.84577374]
[1674195014407,0.00600228,20990.0,20989.0,5.13015708]
[1674195014941,0.00600228,20990.0,20989.0,5.35768421]
[1674195015209,0.00600228,20990.0,20989.0,5.35768691]
[1674195015722,0.00600228,20990.0,20989.0,5.449688]
[1674195016014,0.00600228,20990.0,20989.0,5.16530466]
[1674195016526,0.00600228,20990.0,20989.0,5.25875197]
[1674195018139,0.00600228,20990.0,20989.0,5.03122105]
[1674195018392,0.00600228,20990.0,20989.0,4.86252462]
[1674195018652,0.00600228,20990.0,20989.0,4.63263754]
[1674195018914,0.00600228,20990.0,20989.0,4.71401559]
[1674195019172,0.00600228,20990.0,20989.0,4.82781103]
[1674195019393,0.00600228,20990.0,20989.0,4.37446005]
[1674195019651,0.00600228,20990.0,20989.0,4.67446005]
[1674195019985,0.00600228,20990.0,20989.0,5.01401559]
[1674195020429,0.00600228,20990.0,20989.0,5.24154651]
[1674195020685,0.00600228,20990.0,20989.0,5.01401559]
[1674195022198,0.00600228,20990.0,20989.0,5.13134248]
[1674195022750,0.00600228,20990.0,20989.0,4.96069517]
[1674195023301,0.00600228,20990.0,20989.0,5.04313564]
[1674195025881,0.00600228,20990.0,20989.0,5.21378295]
[1674195026629,0.00600228,20990.0,20989.0,5.2553849]
[1674195026888,0.00600228,20990.0,20989.0,4.78781016]
[1674195027402,0.00600228,20990.0,20989.0,5.24111722]
[1674195028467,0.00600228,20990.0,20989.0,5.44437949]
[1674195028696,0.00600228,20990.0,20989.0,5.32161704]
[1674195028976,0.00600228,20990.0,20989.0,4.90177456]
[1674195029220,0.00600228,20990.0,20989.0,5.29137618]
[1674195029482,0.00600228,20990.0,20989.0,5.66066349]
[1674195030001,0.00600228,20990.0,20989.0,5.2413301]
[1674195030256,0.00600228,20990.0,20989.0,5.07046991]
[1674195030518,0.00600228,20990.0,20989.0,5.35485325]
[1674195030806,0.00600228,20990.0,20989.0,4.78776679]
[1674195031061,0.00600228,20990.0,20989.0,5.01567461]
[1674195031320,0.00600228,20990.0,20989.0,5.43545896]
[1674195031904,0.00600228,20990.0,20989.0,5.01567461]
[1674195032170,0.00600228,20990.0,20989.0,4.78776679]
[1674195032430,0.00600228,20990.0,20989.0,4.50338345]
[1674195032689,0.00600228,20990.0,20989.0,5.12792154]
[1674195032998,0.00600228,20990.0,20989.0,4.83156839]
[1674195033517,0.00600228,20990.0,20989.0,4.83161276]
[1674195033773,0.00600228,20990.0,20989.0,5.39097347]
[1674195034585,0.00600228,20990.0,20989.0,5.16293456]
[1674195034811,0.00600228,20990.0,20989.0,5.41404953]
[1674195035068,0.00600228,20990.0,20989.0,3.50828953]
[1674195035321,0.00600228,20990.0,20989.0,5.41404953]
[1674195035837,0.00600228,20990.0,20989.0,5.05972951]
[1674195036097,0.00600228,20990.0,20989.0,4.83161276]
[1674195036619,0.00600228,20990.0,20989.0,4.54658584]
[1674195036924,0.00600228,20990.0,20989.0,4.88614138]
[1674195038237,0.00588997,20990.0,20989.0,4.83177563]
[1674195038449,0.00588997,20990.0,20989.0,4.88614138]
[1674195038698,0.00588997,20990.0,20989.0,5.25037799]
[1674195039206,0.00588997,20990.0,20989.0,4.88614138]
[1674195039722,0.00588997,20990.0,20989.0,5.28970353]
[1674195040232,0.00588997,20990.0,20989.0,5.51800543]
[1674195041776,0.00588997,20990.0,20989.0,5.51782719]
[1674195042846,0.00588997,20990.0,20989.0,5.06007378]
[1674195043071,0.00588997,20990.0,20989.0,5.18925546]
[1674195044361,0.00588997,20990.0,20989.0,4.83176296]
[1674195044631,0.00588997,20990.0,20989.0,5.27057497]
[1674195044874,0.00588997,20990.0,20989.0,4.5464076]
[1674195045149,0.00588997,20990.0,20989.0,5.26705116]
[1674195045372,0.00588997,20990.0,20989.0,5.55245085]
[1674195045599,0.00588997,20990.0,20989.0,5.21289531]
[1674195045874,0.00588997,20990.0,20989.0,5.18974067]
[1674195046168,0.00588997,20990.0,20989.0,4.83180729]
[1674195046440,0.00588997,20990.0,20989.0,5.29826726]
[1674195047394,0.00588997,20990.0,20989.0,4.83180729]
[1674195047917,0.00588997,20990.0,20989.0,5.47682089]
[1674195048727,0.00588997,20990.0,20989.0,5.07000729]
[1674195049248,0.00588997,20990.0,20989.0,4.7846076]
[1674195049509,0.00588997,20990.0,20989.0,5.80076064]
[1674195049798,0.00588997,20990.0,20989.0,5.4612051]
[1674195051168,0.00588997,20990.0,20989.0,5.07003463]
[1674195052185,0.00588997,20990.0,20989.0,4.7846176]
[1674195052480,0.00588997,20990.0,20989.0,5.12417314]
[1674195052980,0.00588997,20990.0,20989.0,5.53620654]
[1674195053234,0.00588997,20990.0,20989.0,5.12417314]
[1674195053805,0.00588997,20990.0,20989.0,5.40959602]
[1674195054546,0.00588997,20990.0,20989.0,4.7846176]
[1674195054804,0.00588997,20990.0,20989.0,5.47580143]
[1674195055094,0.00588997,20990.0,20989.0,5.12417314]
[1674195056136,0.00588997,20990.0,20989.0,5.46053051]
[1674195057213,0.00588997,20990.0,20989.0,5.54593304]
[1674195057476,0.00588997,20990.0,20989.0,5.12417314]
[1674195058487,0.00588997,20990.0,20989.0,5.45968173]
[1674195059718,0.00588997,20990.0,20989.0,5.40570162]
[1674195061287,0.00588997,20990.0,20989.0,5.10570162]
[1674195061553,0.00588997,20990.0,20989.0,5.33420115]
[1674195062543,0.00582225,20990.0,20989.0,5.33420115]
[1674195063092,0.00582225,20990.0,20989.0,4.31009396]
[1674195063358,0.00582225,20990.0,20989.0,4.26399839]
[1674195063617,0.00582225,20990.0,20989.0,3.97842296]
[1674195063881,0.00582225,20990.0,20989.0,4.14975762]
[1674195064409,0.00582225,20990.0,20989.0,4.14975146]
[1674195065156,0.00582225,20990.0,20989.0,3.97842296]
[1674195065705,0.00582225,20990.0,20989.0,4.56399839]
[1674195066996,0.00582225,20990.0,20989.0,4.2284898]
[1674195067257,0.00582225,20990.0,20989.0,4.67093077]
[1674195067518,0.00582225,20990.0,20989.0,4.38535534]
[1674195068082,0.00582225,20990.0,20989.0,4.67093077]
[1674195068786,0.00582225,20990.0,20989.0,4.38535534]
[1674195070101,0.00582225,20990.0,20989.0,4.08535534]
[1674195070360,0.00582225,20990.0,20989.0,4.38535534]
[1674195070645,0.00582225,20990.0,20989.0,4.08535534]
[1674195070913,0.00582225,20990.0,20989.0,4.25653563]
[1674195071177,0.00582225,20990.0,20989.0,4.08535534]
[1674195071432,0.00582225,20990.0,20989.0,4.25653934]
[1674195072122,0.00582225,20990.0,20989.0,4.2565293]
[1674195072385,0.00582225,20990.0,20989.0,4.08535534]
[1674195073974,0.00582225,20990.0,20989.0,4.25653652]
[1674195074242,0.00582225,20990.0,20989.0,4.39791034]
[1674195074594,0.00582225,20990.0,20989.0,4.56910615]
[1674195075301,0.00582225,20990.0,20989.0,3.65722551]
[1674195075565,0.00582225,20990.0,20989.0,3.44443901]
[1674195077639,0.00582225,20990.0,20989.0,3.44501258]
[1674195079380,0.00582225,20990.0,20989.0,3.64427477]
[1674195079645,0.00582225,20990.0,20989.0,3.61619406]
[1674195080909,0.00582225,20990.0,20989.0,3.64427176]
[1674195081207,0.00582225,20990.0,20989.0,3.63487776]
[1674195081474,0.00582225,20990.0,20989.0,3.43561858]
[1674195081724,0.00582225,20990.0,20989.0,3.32149036]
[1674195081980,0.00582225,20990.0,20989.0,2.46595062]
[1674195082278,0.31748125,20990.0,20989.0,2.46595062]
[1674195082546,0.31748125,20990.0,20989.0,2.45655662]
[1674195082777,0.31748125,20990.0,20989.0,2.36455662]
[1674195083036,0.00582225,20990.0,20989.0,2.35516262]
[1674195083313,0.00582225,20990.0,20989.0,2.34576862]
[1674195083781,1.73867526,20990.0,20989.0,0.04377596]
[1674195083786,1.73796447,20990.0,20989.0,0.04377596]
[1674195084046,1.84596447,20990.0,20989.0,0.04477596]
[1674195084321,1.8068064,20990.0,20989.0,0.03538196]
[1674195084588,2.21481939,20990.0,20989.0,0.03538196]
[1674195084905,3.4443203,20990.0,20989.0,1e-08]
[1674195085129,5.36704181,20990.0,20989.0,1e-08]
[1674195085388,7.768e-05,20989.0,20985.0,0.467117]
[1674195085654,0.3404,20986.0,20985.0,0.467117]
[1674195085918,0.648967,20986.0,20985.0,0.467117]
[1674195086786,0.648967,20986.0,20985.0,0.474117]
[1674195087051,0.648967,20986.0,20985.0,0.467117]
[1674195087318,0.648967,20986.0,20985.0,0.468117]
[1674195087319,0.99719318,20986.0,20985.0,0.468117]
[1674195087617,0.98619318,20986.0,20985.0,0.467117]
[1674195089161,0.99619318,20986.0,20985.0,0.467117]
[1674195089397,0.99619318,20986.0,20984.0,0.476535]
[1674195089681,0.47072618,20986.0,20985.0,0.007]
[1674195089948,1.00888118,20986.0,20985.0,0.007]
[1674195090441,0.651655,20986.0,20984.0,0.476535]
[1674195090698,0.57740035,20985.0,20984.0,0.483535]
[1674195090963,0.57740035,20985.0,20984.0,0.476535]
[1674195092557,0.57740035,20985.0,20984.0,0.483535]
[1674195092858,0.57740035,20985.0,20984.0,0.476535]
[1674195093132,0.58740035,20985.0,20984.0,0.483535]
[1674195094762,0.58740035,20985.0,20984.0,0.007]
[1674195098347,0.70513889,20985.0,20984.0,0.007]
[1674195098888,0.77219042,20985.0,20984.0,0.007]
[1674195099677,0.87219042,20985.0,20984.0,0.007]
[1674195100220,0.75445188,20985.0,20984.0,0.007]
[1674195102312,0.509449,20985.0,20984.0,0.007]
[1674195102557,1.79304829,20985.0,20984.0,0.007]
[1674195102799,2.48699321,20985.0,20984.0,0.007]
[1674195103311,2.133509,20985.0,20980.0,0.38018781]
[1674195103532,0.227,20981.0,20980.0,0.38018781]
[1674195103773,0.285949,20981.0,20980.0,0.38018781]
[1674195104260,0.227,20981.0,20980.0,0.38018781]
[1674195104508,0.311,20981.0,20980.0,0.38118781]
[1674195104713,0.227,20981.0,20980.0,0.38018781]
[1674195105455,0.227,20981.0,20980.0,0.00798465]
[1674195105712,0.286,20981.0,20980.0,0.00898465]
[1674195106370,0.5657479,20981.0,20980.0,0.00898465]
[1674195107402,0.5657479,20981.0,20980.0,1.63767455]
[1674195107403,0.1725,20981.0,20980.0,1.63767455]
[1674195107652,0.1725,20981.0,20980.0,1.39935455]
[1674195108168,0.1725,20981.0,20980.0,1.87655624]
[1674195108429,0.059,20981.0,20980.0,2.15998734]
[1674195109214,0.059,20981.0,20980.0,2.39830734]
[1674195109743,0.059,20981.0,20980.0,2.40680734]
[1674195109744,0.0589031,20981.0,20980.0,2.40680734]
[1674195110558,0.1125,20985.0,20980.0,2.40580734]
[1674195110861,0.1125,20985.0,20981.0,1.28718766]
[1674195111158,0.1125,20985.0,20982.0,2.32838769]
[1674195111415,0.1125,20985.0,20983.0,0.313337]
[1674195111667,0.1125,20985.0,20984.0,0.953106]
[1674195112486,0.28819254,20986.0,20984.0,0.953106]
[1674195113986,0.36619254,20986.0,20984.0,1.30854174]
[1674195115755,0.078,20986.0,20984.0,1.30854174]
[1674195116011,0.078,20986.0,20985.0,0.45442994]
[1674195116290,0.078,20986.0,20985.0,1.40748994]
[1674195117018,0.11257768,20989.0,20985.0,1.40748994]
[1674195117278,0.078,20986.0,20985.0,1.60281091]
[1674195117535,0.078,20986.0,20985.0,1.40848994]
[1674195118058,0.29954258,20987.0,20985.0,1.40748994]
[1674195118287,0.29954258,20987.0,20985.0,1.40848994]
[1674195118865,0.29896914,20987.0,20985.0,0.95406]
[1674195119304,0.29896914,20987.0,20985.0,0.95306]
[1674195119536,0.078,20986.0,20985.0,0.95406]
[1674195119808,0.29896914,20987.0,20985.0,0.95306]
[1674195120065,0.37696914,20987.0,20985.0,0.95406]
[1674195120867,0.31683616,20986.0,20985.0,0.47753]
[1674195121123,0.43033616,20986.0,20985.0,0.001]
[1674195121456,0.75031716,20986.0,20985.0,0.001]
[1674195121954,0.85031716,20986.0,20985.0,0.001]
[1674195122468,1.04062136,20986.0,20985.0,0.001]
[1674195122742,1.23192136,20986.0,20985.0,0.001]
[1674195123531,1.04161716,20986.0,20985.0,0.001]
[1674195124046,1.31542452,20986.0,20985.0,0.001]
[1674195124862,1.37249229,20986.0,20982.0,0.476582]
[1674195125135,0.57478249,20985.0,20982.0,0.476582]
[1674195125677,0.319981,20984.0,20982.0,0.476582]
[1674195125931,0.050323,20983.0,20981.0,0.476604]
[1674195126187,0.319981,20982.0,20981.0,0.476604]
[1674195126448,1.38507742,20985.0,20981.0,0.476604]
[1674195126754,0.29158501,20984.0,20981.0,0.67092497]
[1674195127053,0.339975,20983.0,20980.0,0.8600067]
[1674195127317,0.29158501,20984.0,20981.0,0.012]
[1674195127318,0.008,20982.0,20981.0,0.012]
[1674195128633,0.489821,20982.0,20981.0,0.012]
[1674195128890,0.716821,20982.0,20980.0,0.00798465]
[1674195129158,0.166783,20981.0,20980.0,0.00798465]
[1674195129866,0.46219415,20981.0,20980.0,0.00798465]
[1674195130630,0.266783,20981.0,20980.0,0.00798465]